fUSD/lending_fUSD_20260122
["ID","MTS","AMOUNT","RATE_DAILY","PERIOD"]
[403043647,1769097046673,-1000.0,0.00027397,2]
[403043648,1769097046683,-1444.97,0.00027397,2]
[403043649,1769097046692,-651.41,0.00027397,2]
[403043650,1769097046702,-328.565157,0.00027397,7]
[403043651,1769097046712,-328.565157,0.00027397,7]
[403043652,1769097046722,-328.565157,0.00027397,7]
[403043653,1769097046732,-328.565157,0.00027397,7]
[403043654,1769097046741,-500.0,0.00027397,30]
[403043655,1769097046751,-300.0,0.00027397,2]
[403043656,1769097046760,-39838.15,0.00027397,2]
[403043657,1769097046770,-2885.03,0.00027397,2]
[403043658,1769097046779,-1247.68,0.00027397,2]
[403043659,1769097046788,-220547.48,0.000274,2]
[403043660,1769097046797,-151.0,0.000274,7]
[403043661,1769097046806,-151.0,0.000274,7]
[403043662,1769097046815,-151.0,0.000274,7]
[403043663,1769097046824,-151.0,0.000274,7]
[403043664,1769097046832,-151.0,0.000274,7]
[403043665,1769097046842,-167.680365,0.000274,7]
[403043666,1769097046852,-167.680365,0.000274,7]
[403043667,1769097046860,-167.680365,0.000274,7]
[403043669,1769097046869,-167.680365,0.000274,7]
[403043671,1769097046879,-151.0,0.000274,7]
[403043672,1769097046889,-151.0,0.000274,7]
[403043673,1769097046898,-151.0,0.000274,7]
[403043674,1769097046907,-200.8023968,0.000275,2]
[403043675,1769097046916,-548.54648125,0.000275,2]
[403043676,1769097046926,-200.0,0.00027542,2]
[403043677,1769097046935,-6198.4532229,0.00027604,2]
[403043678,1769097046944,-1472.02281822,0.00027612,5]
[403043679,1769097046954,-1007.70713806,0.00027612,5]
[403043680,1769097046963,-773.49858789,0.00027612,5]
[403043681,1769097046972,-500.0,0.00027612,5]
[403043682,1769097046981,-3000.0,0.00027612,5]
[403043683,1769097046990,-1307.79502881,0.00027612,5]
[403043684,1769097047000,-1000.0,0.00027671,2]
[403043685,1769097047009,-1926.1,0.00027877,2]
[403043686,1769097047019,-1000.0,0.00027945,2]
[403043687,1769097047028,-71192.37245224,0.00028,2]
[403043688,1769097047037,-50766.77078287,0.00028,2]
[403043689,1769097047047,-3922.21720796,0.00028,60]
[403043690,1769097047057,-160.0,0.00028,2]
[403043691,1769097047066,-151.0,0.00028,7]
[403043692,1769097047076,-151.0,0.00028,7]
[403043693,1769097047085,-151.0,0.00028,7]
[403043694,1769097047095,-151.0,0.00028,7]
[403043695,1769097047104,-245.465824,0.00028,7]
[403043696,1769097047113,-1628.71369645,0.0002816,5]
[403043697,1769097047126,-1000.0,0.00028219,2]
[403043698,1769097047135,-1000.0,0.00028493,2]
[403043699,1769097047144,-3210.0,0.00028764,2]
[403043700,1769097047154,-1000.0,0.00028767,2]
[403043701,1769097047163,-1000.0,0.00029041,2]
[403043702,1769097047172,-3474.0,0.00029131,2]
[403043703,1769097047181,-615.0,0.00029131,2]
[403043704,1769097047191,-1407.0,0.00029131,2]
[403043705,1769097047200,-1332.0,0.00029131,2]
[403043706,1769097047209,-184.0,0.00029131,2]
[403043707,1769097047219,-1268.0,0.00029131,2]
[403043708,1769097047228,-915.0,0.00029131,2]
[403043709,1769097047237,-1203.0,0.00029131,2]
[403043710,1769097047246,-6565.0,0.00029131,2]
[403043711,1769097047256,-2441.0,0.00029131,2]
[403043712,1769097047266,-565.317,0.00029131,2]
[403043713,1769097047275,-1000.0,0.00029315,2]
[403043714,1769097047285,-1963.25702748,0.00029466,2]
[403043715,1769097047294,-150.0,0.000295,14]
[403043716,1769097047304,-1000.0,0.00029589,2]
[403043717,1769097047313,-150.0,0.00029589,2]
[403043718,1769097047322,-5533.0,0.000297,5]
[403043719,1769097047332,-1000.0,0.00029863,2]
[403043720,1769097047343,-154.320814,0.00029899,7]
[403043721,1769097047353,-78788.61274612,0.000299,2]
[403043722,1769097047363,-236.9590274,0.0002999,2]
[403043723,1769097047374,-1862.00318555,0.0003,120]
[403043724,1769097047383,-4711.88680546,0.0003,2]
[403043725,1769097047392,-19844.80473171,0.0003,2]
[403043726,1769097047401,-4146.48554618,0.0003,2]
[403043727,1769097047411,-1814.94395561,0.0003,2]
[403043728,1769097047419,-440.64286586,0.0003,2]
[403043729,1769097047429,-162.79738868,0.0003,2]
[403043730,1769097047438,-220547.48,0.0003,2]
[403043731,1769097047448,-1926.1,0.00030039,2]
[403043732,1769097047457,-1072.16543125,0.0003013,2]
[403043733,1769097047467,-13830.91975149,0.0003013,2]
[403043734,1769097047476,-633.17511186,0.0003013,2]
[403043735,1769097047486,-5052.43083185,0.0003013,2]
[403043736,1769097047496,-201.42878098,0.0003013,2]
[403043737,1769097047505,-1222.78730344,0.0003013,2]
[403043738,1769097047515,-7719.83989813,0.0003013,2]
[403043739,1769097047525,-3210.0,0.00030133,2]
[403043740,1769097047535,-1000.0,0.00030137,2]
[403043741,1769097047544,-651.41,0.00030137,2]
[403043742,1769097047555,-1447.0,0.00030137,2]
[403043743,1769097047564,-354.88450969,0.00030178,2]
[403043744,1769097047574,-1447.0,0.00030192,2]
[403043745,1769097047584,-12204.33293883,0.000302,2]
[403043746,1769097047594,-1447.0,0.00030247,2]
[403043747,1769097047604,-1447.0,0.00030301,2]
[403043748,1769097047614,-1447.0,0.00030356,2]
[403043749,1769097047624,-1000.0,0.00030411,7]
[403043750,1769097047634,-1447.0,0.00030411,2]
[403043751,1769097047643,-1447.0,0.00030466,2]
[403043752,1769097047652,-1447.0,0.00030521,2]
[403043753,1769097047662,-1447.0,0.00030575,2]
[403043754,1769097047672,-158.5516778,0.00030585,6]
[403043755,1769097047683,-1447.0,0.0003063,2]
[403043756,1769097047693,-1447.0,0.00030685,2]
[403043757,1769097047703,-1447.0,0.0003074,2]
[403043758,1769097047713,-163.08495989,0.00030744,5]
[403043759,1769097047724,-150.47180521,0.00030744,5]
[403043760,1769097047735,-164.12572755,0.00030744,5]
[403043761,1769097047745,-1447.0,0.00030795,2]
[403043762,1769097047756,-1606.27161499,0.0003084,2]
[403043763,1769097047766,-1447.0,0.00030849,2]
[403043764,1769097047776,-1447.0,0.00030904,2]
[403043765,1769097047786,-78895.4172209,0.0003095,2]
[403043766,1769097047796,-1447.0,0.00030959,2]
[403043767,1769097047807,-51498.6459929,0.00031,2]
[403043768,1769097047817,-480.7486,0.00031,28]
[403043769,1769097047828,-480.7486,0.00031,28]
[403043770,1769097047838,-480.7486,0.00031,28]
[403043771,1769097047852,-480.7486,0.00031,28]
[403043772,1769097047863,-1447.0,0.00031014,2]
[403043773,1769097047873,-6198.4532229,0.0003102,2]
[403043774,1769097047884,-1447.0,0.00031069,2]
[403043775,1769097047894,-1447.0,0.00031123,2]
[403043776,1769097047904,-1447.0,0.00031178,2]
[403043777,1769097047914,-18931.50579495,0.0003121,2]
[403043778,1769097047924,-1447.0,0.00031233,2]
[403043779,1769097047934,-1447.0,0.00031288,2]
[403043780,1769097047944,-328.565157,0.00031342,31]
[403043781,1769097047954,-328.565157,0.00031342,31]
[403043782,1769097047965,-328.565157,0.00031342,31]
[403043783,1769097047975,-328.565157,0.00031342,31]
[403043784,1769097047985,-10308.63,0.00031342,2]
[403043785,1769097047995,-1447.0,0.00031342,2]
[403043786,1769097048005,-1462.46116223,0.00031397,2]
[403043787,1769097048015,-197.07729266,0.000315,2]
[403043788,1769097048025,-150.0,0.000315,2]
[403043789,1769097048035,-3210.0,0.00031502,2]
[403043790,1769097048044,-150.0,0.00032055,2]
[403043791,1769097048054,-3474.0,0.00032131,2]
[403043792,1769097048064,-615.0,0.00032131,2]
[403043793,1769097048075,-1407.0,0.00032131,2]
[403043794,1769097048085,-1332.0,0.00032131,2]
[403043795,1769097048095,-173.0,0.00032131,2]
[403043796,1769097048105,-1268.0,0.00032131,2]
[403043797,1769097048116,-915.0,0.00032131,2]
[403043798,1769097048129,-1203.0,0.00032131,2]
[403043799,1769097048140,-6565.0,0.00032131,2]
[403043800,1769097048150,-2441.0,0.00032131,2]
[403043801,1769097048161,-500.0,0.0003216,2]
[403043802,1769097048172,-1926.1,0.00032202,2]
[403043803,1769097048182,-892.89998639,0.000323,2]
[403043804,1769097048193,-4822.9269095,0.000328,2]
[403043805,1769097048204,-220547.48,0.000328,2]
[403043806,1769097048214,-200.0,0.00032818,2]
[403043807,1769097048224,-3210.0,0.00032871,2]
[403043808,1769097048234,-651.41,0.00032877,2]
[403043809,1769097048244,-168.66483591,0.00032877,2]
[403043810,1769097048254,-500.0,0.00032877,2]
[403043811,1769097048264,-500.0,0.00032877,2]
[403043812,1769097048274,-500.0,0.00032877,2]
[403043813,1769097048284,-350.26544043,0.00032877,2]
[403043814,1769097048294,-500.0,0.00032877,5]
[403043815,1769097048304,-500.0,0.00032877,2]
[403043816,1769097048314,-500.0,0.00032877,2]
[403043817,1769097048324,-784.0,0.00032877,2]
[403043818,1769097048334,-28317.73,0.000329,2]
[403043819,1769097048346,-160.44,0.000329,14]
[403043820,1769097048357,-784.0,0.00032932,2]
[403043821,1769097048368,-784.0,0.00032987,2]
[403043822,1769097048379,-51226.17592646,0.00033,2]
[403043823,1769097048389,-26341.58643141,0.00033,2]
[403043824,1769097048400,-153.31507258,0.00033,2]
[403043825,1769097048410,-784.0,0.00033041,2]
[403043826,1769097048421,-784.0,0.00033096,2]
[403043827,1769097048431,-333.0,0.000331,2]
[403043828,1769097048442,-784.0,0.00033151,2]
[403043829,1769097048452,-784.0,0.00033206,2]
[403043830,1769097048463,-784.0,0.00033261,2]
[403043831,1769097048474,-784.0,0.00033315,2]
[403043832,1769097048484,-1000.0,0.0003334,2]
[403043833,1769097048494,-1000.0,0.0003334,2]
[403043834,1769097048504,-1000.0,0.0003334,2]
[403043835,1769097048514,-1000.0,0.0003334,2]
[403043836,1769097048524,-1000.0,0.0003334,2]
[403043837,1769097048534,-784.0,0.0003337,2]
[403043838,1769097048545,-1000.0,0.00033376,2]
[403043839,1769097048556,-1000.0,0.00033376,2]
[403043840,1769097048567,-1000.0,0.00033376,2]
[403043841,1769097048577,-1000.0,0.00033376,2]
[403043842,1769097048588,-1000.0,0.00033376,2]
[403043843,1769097048600,-502.21128854,0.00033425,5]
[403043844,1769097048611,-784.0,0.00033425,2]
[403043845,1769097048621,-784.0,0.0003348,2]
[403043846,1769097048632,-1209.55161519,0.000335,2]
[403043847,1769097048643,-784.0,0.00033535,2]
[403043848,1769097048654,-784.0,0.00033589,2]
[403043849,1769097048665,-784.0,0.00033644,2]
[403043850,1769097048676,-784.0,0.00033699,2]
[403043851,1769097048687,-784.0,0.00033754,2]
[403043852,1769097048698,-784.0,0.00033809,2]
[403043853,1769097048708,-784.0,0.00033863,2]
[403043854,1769097048719,-784.0,0.00033918,2]
[403043855,1769097048730,-150.33,0.0003393,30]
[403043856,1769097048741,-784.0,0.00033973,2]
[403043857,1769097048751,-326.63588603,0.00034,2]
[403043858,1769097048762,-1913.15065309,0.00034,2]
[403043859,1769097048773,-501.61503756,0.00034,2]
[403043860,1769097048783,-784.0,0.00034028,2]
[403043861,1769097048794,-784.0,0.00034082,2]
[403043862,1769097048804,-160.44,0.000341,14]
[403043863,1769097048815,-798.11609551,0.00034137,2]
[403043864,1769097048825,-150.0,0.00034173,5]
[403043865,1769097048839,-300.0,0.00034173,5]
[403043866,1769097048856,-1926.1,0.00034364,5]
[403043867,1769097048869,-6198.4532229,0.00034436,2]
[403043868,1769097048881,-1729.14135792,0.0003449,2]
[403043869,1769097048894,-2000.0,0.000345,2]
[403043870,1769097048908,-150.0,0.00034521,2]
[403043871,1769097048921,-354.88450969,0.00034532,2]
[403043872,1769097048936,-28317.73,0.000347,2]
[403043873,1769097048949,-155.439204,0.000347,31]
[403043874,1769097048960,-151.0,0.000347,31]
[403043875,1769097048972,-151.0,0.000347,31]
[403043876,1769097048985,-151.0,0.000347,31]
[403043877,1769097048997,-151.0,0.000347,31]
[403043878,1769097049010,-167.680365,0.000347,31]
[403043879,1769097049023,-167.680365,0.000347,31]
[403043880,1769097049036,-167.680365,0.000347,31]
[403043881,1769097049049,-167.680365,0.000347,31]
[403043882,1769097049062,-151.0,0.000347,31]
[403043883,1769097049077,-151.0,0.000347,31]
[403043884,1769097049090,-151.0,0.000347,31]
[403043885,1769097049104,-250.0,0.00034721,5]
[403043886,1769097049117,-701.10639016,0.00034721,5]
[403043887,1769097049133,-342.5707012,0.00034849,120]
[403043888,1769097049145,-9336.17195548,0.0003488,120]
[403043889,1769097049159,-160.44,0.000349,14]
[403043890,1769097049173,-155.23,0.00034978,2]
[403043891,1769097049185,-3561.42930987,0.00035,2]
[403043892,1769097049199,-1915.08271777,0.00035,2]
[403043893,1769097049210,-161.17974342,0.00035,2]
[403043894,1769097049221,-20000.0,0.00035,15]
[403043895,1769097049235,-3474.0,0.00035131,2]
[403043896,1769097049249,-615.0,0.00035131,2]
[403043897,1769097049259,-1407.0,0.00035131,2]
[403043898,1769097049270,-1332.0,0.00035131,2]
[403043899,1769097049280,-1268.0,0.00035131,2]
[403043900,1769097049294,-915.0,0.00035131,2]
[403043901,1769097049307,-1203.0,0.00035131,2]
[403043902,1769097049317,-5222.548,0.00035131,2]
[403043903,1769097049328,-2441.0,0.00035131,2]
[403043904,1769097049339,-155.23,0.00035196,2]
[403043905,1769097049352,-350.0,0.00035268,5]
[403043906,1769097049363,-9844.72999628,0.00035405,2]
[403043907,1769097049376,-2242.19164019,0.00035405,2]
[403043908,1769097049967,-2625.30000433,0.00035405,2]
[403043909,1769097049982,-132.50835548,0.00035405,2]
[403043910,1769097049994,-2483.4215952,0.00035405,2]
[403043911,1769097050021,-867.29626824,0.00035405,2]
[403043912,1769097050500,-1649.28213656,0.00035405,2]
[403043913,1769097050511,-5000.0,0.00035405,2]
[403043914,1769097050523,-2698.00108394,0.00035405,2]
[403043915,1769097051155,-331.74999999,0.00030588,2]
[403043916,1769097051248,-2112.80129718,0.00030588,2]
[403043917,1769097051257,-2301.99891606,0.00035405,2]
[403043918,1769097051267,-155.23,0.00035415,2]
[403043919,1769097051276,-510.42440293,0.00035589,30]
[403043920,1769097051285,-387.64836486,0.000356,30]
[403043921,1769097051294,-7080.81579579,0.000356,2]
[403043922,1769097051306,-2659.561022,0.000356,2]
[403043923,1769097051989,-2312.21962952,0.00016537,2]
[403043924,1769097051999,-9341.35645622,0.000356,2]
[403043925,1769097052056,-201465.74672599,0.000356,2]
[403043926,1769097052066,-151.0,0.000356,7]
[403043927,1769097052074,-151.0,0.000356,31]
[403043928,1769097052083,-151.0,0.000356,31]
[403043929,1769097052093,-151.0,0.000356,31]
[403043930,1769097052102,-500.0,0.00035616,7]
[403043931,1769097052112,-331.19628638,0.00035616,7]
[403043932,1769097052122,-651.41,0.00035616,2]
[403043933,1769097052133,-729.0,0.00035617,30]
[403043934,1769097052141,-155.23,0.00035633,2]
[403043935,1769097052150,-1963.25702748,0.00035642,8]
[403043936,1769097052159,-450.0,0.00035816,5]
[403043937,1769097052170,-155.23,0.00035852,2]
[403043938,1769097052179,-136571.89932888,0.00036,2]
[403043939,1769097052188,-4413.35249996,0.00036,2]
[403043940,1769097052198,-28317.73,0.00036,2]
[403043941,1769097052207,-160.44,0.00036,14]
[403043942,1769097052216,-155.23,0.00036071,2]
[403043943,1769097052225,-155.23,0.00036289,2]
[403043944,1769097052234,-550.0,0.00036364,5]
[403043945,1769097052243,-155.23,0.00036508,2]
[403043946,1769097052251,-1926.1,0.00036526,7]
[403043947,1769097052261,-155.23,0.00036726,2]
[403043948,1769097052269,-650.0,0.00036912,5]
[403043949,1769097052279,-151.0,0.00036986,7]
[403043950,1769097052288,-154.017159,0.00036986,31]
[403043951,1769097052297,-151.0,0.00036986,31]
[403043952,1769097052306,-164.245805,0.00036986,31]
[403043953,1769097052315,-153.239103,0.00036986,31]
[403043954,1769097052324,-153.239103,0.00036986,31]
[403043955,1769097052333,-153.239103,0.00036986,31]
[403043956,1769097052342,-153.239103,0.00036986,31]
[403043957,1769097052351,-154.497182,0.00036986,31]
[403043958,1769097052360,-156.87477,0.00036986,31]
[403043959,1769097052369,-151.0,0.00036986,31]
[403043960,1769097052379,-151.0,0.00036986,31]
[403043961,1769097052388,-152.759625,0.00036986,31]
[403043962,1769097052398,-152.339417,0.00036986,31]
[403043963,1769097052407,-285.055341,0.00036986,31]
[403043964,1769097052416,-151.0,0.00036986,31]
[403043965,1769097052426,-154.063597,0.00036986,31]
[403043966,1769097052435,-151.0,0.00036986,31]
[403043967,1769097052445,-152.453473,0.00036986,31]
[403043968,1769097052454,-154.1435,0.00036986,31]
[403043969,1769097052462,-156.004547,0.00036986,31]
[403043970,1769097052472,-151.0,0.00036986,31]
[403043971,1769097052481,-151.0,0.00036986,31]
[403043972,1769097052490,-174.986168,0.00036986,31]
[403043973,1769097052499,-153.433041,0.00036986,31]
[403043974,1769097052509,-156.453824,0.00036986,31]
[403043975,1769097052518,-151.0,0.00036986,31]
[403043976,1769097052526,-243.649618,0.00036986,31]
[403043977,1769097052535,-151.0,0.00036986,31]
[403043978,1769097052544,-151.0,0.00036986,31]
[403043979,1769097052552,-151.0,0.00036986,31]
[403043980,1769097052561,-181.850976,0.00036986,31]
[403043981,1769097052570,-151.0,0.00036986,31]
[403043982,1769097052579,-157.195285,0.00036986,31]
[403043983,1769097052588,-151.0,0.00036986,31]
[403043984,1769097052597,-155.619575,0.00036986,31]
[403043985,1769097052607,-151.0,0.00036986,31]
[403043986,1769097052616,-171.905968,0.00036986,31]
[403043987,1769097052625,-151.0,0.00036986,31]
[403043988,1769097052634,-151.0,0.00036986,31]
[403043989,1769097052644,-151.0,0.00036986,31]
[403043990,1769097052654,-151.0,0.00036986,31]
[403043991,1769097052663,-151.0,0.00036986,31]
[403043992,1769097052673,-151.0,0.00036986,31]
[403043993,1769097052683,-151.0,0.00036986,31]
[403043994,1769097052693,-151.0,0.00036986,31]
[403043995,1769097052704,-151.0,0.00036986,31]
[403043996,1769097052714,-151.0,0.00036986,31]
[403043997,1769097052723,-151.0,0.00036986,31]
[403043998,1769097052732,-151.0,0.00036986,31]
[403043999,1769097052742,-151.0,0.00036986,31]
[403044000,1769097052751,-151.0,0.00036986,31]
[403044001,1769097052760,-151.0,0.00036986,31]
[403044002,1769097052769,-151.0,0.00036986,31]
[403044003,1769097052779,-151.0,0.00036986,31]
[403044004,1769097052787,-155.084288,0.00036986,31]
[403044005,1769097052797,-151.0,0.00036986,31]
[403044006,1769097052806,-151.0,0.00036986,31]
[403044007,1769097052816,-244.95,0.00036986,31]
[403044008,1769097052825,-244.95,0.00036986,31]
[403044009,1769097052834,-208.303742,0.00036986,31]
[403044010,1769097052844,-151.0,0.00036986,31]
[403044011,1769097052854,-151.0,0.00036986,31]
[403044012,1769097052863,-151.0,0.00036986,31]
[403044013,1769097052873,-244.95,0.00036986,31]
[403044014,1769097052882,-244.95,0.00036986,31]
[403044015,1769097052891,-244.95,0.00036986,31]
[403044016,1769097052900,-244.95,0.00036986,31]
[403044017,1769097052910,-244.95,0.00036986,31]
[403044018,1769097052919,-244.95,0.00036986,31]
[403044019,1769097052928,-151.0,0.00036986,30]
[403044020,1769097052937,-151.0,0.00036986,31]
[403044021,1769097052946,-151.0,0.00036986,31]
[403044022,1769097052956,-151.0,0.00036986,31]
[403044023,1769097052965,-151.0,0.00036986,31]
[403044024,1769097052975,-158.557675,0.00036986,31]
[403044025,1769097052984,-151.170668,0.00036986,31]
[403044026,1769097052993,-153.496901,0.00036986,31]
[403044027,1769097053003,-151.0,0.00036986,31]
[403044028,1769097053012,-156.84872,0.00036986,31]
[403044029,1769097053022,-155.944435,0.00036986,31]
[403044030,1769097053031,-209.305978,0.00036986,31]
[403044031,1769097053040,-151.0,0.00036986,31]
[403044032,1769097053049,-151.0,0.00036986,31]
[403044033,1769097053060,-151.0,0.00036986,31]
[403044034,1769097053071,-151.0,0.00036986,31]
[403044035,1769097053080,-169.250215,0.00036986,31]
[403044036,1769097053089,-151.0,0.00036986,31]
[403044037,1769097053099,-151.0,0.00036986,31]
[403044038,1769097053108,-276.012005,0.00036986,31]
[403044039,1769097053123,-151.0,0.00036986,10]
[403044040,1769097053140,-151.0,0.00036986,10]
[403044041,1769097053150,-151.0,0.00036986,10]
[403044042,1769097053160,-151.0,0.00036986,10]
[403044043,1769097053169,-151.0,0.00036986,31]
[403044044,1769097053180,-151.0,0.00036986,31]
[403044045,1769097053190,-151.0,0.00036986,31]
[403044046,1769097053199,-151.0,0.00036986,31]
[403044047,1769097053209,-151.0,0.00036986,31]
[403044048,1769097053220,-151.0,0.00036986,31]
[403044049,1769097053230,-151.0,0.00036986,31]
[403044050,1769097053239,-151.0,0.00036986,31]
[403044051,1769097053248,-151.0,0.00036986,31]
[403044052,1769097053258,-151.0,0.00036986,31]
[403044053,1769097053267,-151.0,0.00036986,31]
[403044054,1769097053276,-151.0,0.00036986,31]
[403044055,1769097053285,-151.0,0.00036986,31]
[403044056,1769097053294,-151.0,0.00036986,31]
[403044057,1769097053305,-151.0,0.00036986,31]
[403044058,1769097053314,-151.0,0.00036986,31]
[403044059,1769097053323,-158.369979,0.00036986,31]
[403044060,1769097053333,-166.78313,0.00036986,31]
[403044061,1769097053343,-158.369979,0.00036986,31]
[403044062,1769097053352,-151.0,0.00036986,31]
[403044063,1769097053361,-158.369979,0.00036986,31]
[403044064,1769097053371,-151.0,0.00036986,31]
[403044065,1769097053380,-158.369979,0.00036986,31]
[403044066,1769097053390,-151.0,0.00036986,31]
[403044067,1769097053401,-151.0,0.00036986,31]
[403044068,1769097053411,-158.369979,0.00036986,31]
[403044069,1769097053420,-158.369979,0.00036986,31]
[403044070,1769097053429,-151.0,0.00036986,31]
[403044071,1769097053439,-191.487206,0.00036986,31]
[403044072,1769097053448,-158.369979,0.00036986,31]
[403044073,1769097053458,-151.0,0.00036986,31]
[403044074,1769097053467,-158.369979,0.00036986,31]
[403044075,1769097053477,-151.0,0.00036986,31]
[403044076,1769097053486,-158.369979,0.00036986,31]
[403044077,1769097053495,-151.0,0.00036986,31]
[403044078,1769097053504,-158.369979,0.00036986,31]
[403044079,1769097053513,-158.369979,0.00036986,31]
[403044080,1769097053521,-158.369979,0.00036986,31]
[403044081,1769097053529,-151.0,0.00036986,31]
[403044082,1769097053538,-151.0,0.00036986,31]
[403044083,1769097053545,-266.463239,0.00036986,31]
[403044084,1769097053553,-151.0,0.00036986,31]
[403044085,1769097053561,-200.527884,0.00036986,31]
[403044086,1769097053570,-171.888817,0.00036986,31]
[403044087,1769097053579,-151.0,0.00036986,31]
[403044088,1769097053589,-155.110487,0.00036986,31]
[403044089,1769097053599,-298.751774,0.00036986,31]
[403044090,1769097053609,-159.103901,0.00036986,30]
[403044091,1769097053618,-151.0,0.00036986,31]
[403044092,1769097053628,-151.0,0.00036986,31]
[403044093,1769097053637,-151.0,0.00036986,31]
[403044094,1769097053646,-151.0,0.00036986,31]
[403044095,1769097053656,-151.0,0.00036986,31]
[403044096,1769097053666,-151.0,0.00036986,31]
[403044097,1769097053675,-151.0,0.00036986,31]
[403044098,1769097053685,-151.0,0.00036986,31]
[403044099,1769097053694,-151.0,0.00036986,31]
[403044100,1769097053704,-151.0,0.00036986,31]
[403044101,1769097053714,-151.0,0.00036986,31]
[403044102,1769097053723,-151.0,0.00036986,31]
[403044103,1769097053733,-151.0,0.00036986,31]
[403044104,1769097053743,-151.0,0.00036986,31]
[403044105,1769097053753,-151.0,0.00036986,31]
[403044106,1769097053762,-151.0,0.00036986,31]
[403044107,1769097053771,-151.0,0.00036986,31]
[403044108,1769097053780,-171.809238,0.00036986,31]
[403044109,1769097053789,-163.823544,0.00036986,31]
[403044110,1769097053799,-168.877367,0.00036986,31]
[403044111,1769097053808,-151.0,0.00036986,31]
[403044112,1769097053818,-151.0,0.00036986,31]
[403044113,1769097053827,-151.0,0.00036986,31]
[403044114,1769097053837,-151.0,0.00036986,31]
[403044115,1769097053846,-151.0,0.00036986,31]
[403044116,1769097053855,-151.0,0.00036986,31]
[403044117,1769097053864,-155.973945,0.00036986,31]
[403044118,1769097053874,-156.662825,0.00036986,31]
[403044119,1769097053883,-151.0,0.00036986,31]
[403044120,1769097053892,-261.048278,0.00036986,31]
[403044121,1769097053901,-153.839492,0.00036986,31]
[403044122,1769097053911,-261.048278,0.00036986,31]
[403044123,1769097053920,-261.048278,0.00036986,31]
[403044124,1769097053929,-261.048278,0.00036986,31]
[403044125,1769097053938,-261.048278,0.00036986,31]
[403044126,1769097053948,-261.048278,0.00036986,31]
[403044127,1769097053958,-261.048278,0.00036986,31]
[403044128,1769097053967,-261.048278,0.00036986,31]
[403044129,1769097053977,-261.048278,0.00036986,31]
[403044130,1769097053987,-261.048278,0.00036986,31]
[403044131,1769097053996,-261.048278,0.00036986,31]
[403044132,1769097054006,-151.0,0.00036986,31]
[403044133,1769097054016,-154.120216,0.00036986,31]
[403044134,1769097054026,-151.0,0.00036986,31]
[403044135,1769097054035,-183.507766,0.00036986,31]
[403044136,1769097054045,-228.845921,0.00036986,31]
[403044137,1769097054055,-157.025842,0.00036986,31]
[403044138,1769097054065,-153.211414,0.00036986,31]
[403044139,1769097054075,-497.379964,0.00036986,31]
[403044140,1769097054085,-497.379964,0.00036986,31]
[403044141,1769097054094,-497.379964,0.00036986,31]
[403044142,1769097054107,-483.413156,0.00036986,31]
[403044143,1769097054118,-483.413156,0.00036986,31]
[403044144,1769097054132,-497.379964,0.00036986,31]
[403044145,1769097054141,-581.406138,0.00036986,31]
[403044146,1769097054151,-483.413156,0.00036986,31]
[403044147,1769097054162,-581.406138,0.00036986,31]
[403044148,1769097054172,-581.406138,0.00036986,31]